{"text_format":"1","workbook":"xlsx","n_sheets":4,"sheets":["MARZO","ABRIL","Resumen","menu"],"not_rendered":{"charts":0,"images":16,"macros":1,"external_links":1,"defined_names":6,"comments":1,"pivot_tables":0},"unopened":[],"bounds":{"document_bytes":16777216,"sheet_cells":100000,"rows_first":2000,"rows_last":500,"rows_between":2000,"halvings":0,"cell_chars":16384,"cell_head_chars":4096},"cells_cut":0,"cells_raw":0,"read":"whole","date_system":"1900"}

{"sheet":"MARZO","index":0,"n_rows":76,"n_cols":10,"rows_kept":76,"cut":false,"hidden":true,"merged":[[0,3,1,7],[2,0,2,10],[3,0,3,10],[4,0,4,2],[5,1,5,2],[5,3,5,8],[6,1,6,2],[6,3,6,4],[6,6,6,8],[7,0,7,2],[8,0,8,2],[8,3,8,6],[8,8,8,9],[9,1,9,2],[9,3,9,6],[9,8,9,9],[11,0,11,10],[15,9,15,10],[15,7,15,8],[15,1,25,4],[15,5,15,6],[27,9,27,10],[29,1,29,2],[29,3,29,4],[29,7,29,8],[29,9,29,10],[27,1,27,2],[27,3,27,4],[27,5,27,6],[29,5,29,6],[27,7,27,8],[36,10,37,10],[39,1,39,2],[39,3,39,4],[39,5,39,6],[39,7,39,8],[39,9,39,10],[36,2,37,2],[36,4,37,4],[36,8,37,8],[36,6,37,6],[41,9,41,10],[48,2,49,2],[48,4,49,4],[48,6,49,6],[48,8,49,8],[48,10,49,10],[41,1,41,2],[41,3,41,4],[41,5,41,6],[41,7,41,8],[51,9,51,10],[53,1,53,2],[53,3,53,4],[53,7,53,8],[53,9,53,10],[53,5,53,6],[51,1,51,2],[51,3,51,4],[51,5,51,6],[51,7,51,8],[72,2,73,2],[60,2,61,2],[60,4,61,4],[60,8,61,8],[60,10,61,10],[63,1,63,2],[63,3,63,4],[63,5,63,6],[60,6,61,6],[64,1,64,2],[105,0,105,10],[106,0,106,10],[109,0,109,10],[63,7,63,8],[65,7,65,8],[72,8,73,8],[63,9,63,10],[65,9,65,10],[72,10,73,10],[65,3,65,4],[65,5,65,6],[72,6,73,6],[77,0,77,1],[78,0,81,9],[72,4,73,4],[65,1,65,2]]}
[null,null,null,"HAPPY LUNCHES SERVICE SAC\n SS.CC RECOLETA\n(1er grado a 5to grado)"]
[]
["BCP CUENTA CORRIENTE: 1942046194-0-25                                                             CODIGO INTERBANCARIO BCP: 002 194 00204619402594   \nBBVA CUENTA CORRIENTE: 0011-0149-0100033241-29                                           CODIGO INTERBANCARIO BBVA: 011 - 149 - 000100033241 - 29  "]
["FAVOR ENVIAR VOUCHER O TRANSFERENCIA ELECTRÓNICA A NUESTRO E-MAIL UNA VEZ REALIZADO EL ABONO EN NUESTRA CUENTA. GRACIAS POR SU COLABORACIÓN."]
[" DATOS DEL PADRE O APODERADO :"]
[{"$f":"CONCATENATE(MARZO!D9,\"  \")","v":"  "},"NOMBRES Y APELLIDOS:"]
[null,"TELÉFONO:","TELEFONO:",null,null,"CORREO ELECTRÓNICO:"]
["DATOS DEL ALUMNO                           :"]
["NOMBRES :",null,null,null,null,null,null,"GRADO Y SECCIÓN :"]
[null,"APELLIDOS :",null,null,null,null,null,"ALERGIAS :"]
[]
["IMPORTANTE: ES NECESARIO QUE LOS DATOS SOLICITADOS SEAN LLENADOS DE FORMA CORRECTA TANTO DEL TUTOR COMO DEL ALUMNO(A) . ELEGIR UNICAMENTE  LA OPCIÓN  EN LA FECHA  QUE DESEA EL SERVICIO,DE NO NECESITAR EL SERVICIO UN DÍA NO SELECCIONAR NINGUNA OPCIÓN ESE DÍA . YA QUE EL PROGRAMA CALCULARÁ LA CANTIDAD DE ALMUERZOS ELEGIDOS POR ALUMNO ASÍ COMO EL TOTAL A DEPOSITAR.\nEN CADA HOJA ELECTRÓNICA DEBE DE HABER SOLO UN ALUMNO.\nNO RE-ENVIAR SIN HABER GUARDADO EL DOCUMENTO DESPUÉS DE HECHA LA SELECCIÓN.\nCUALQUIER CANCELACION O SUSPENSION DE ALGUN ALMUERZO SE DEBE HACER HASTA 8.30 AM DEL MISMO DÍA"]
[]
[]
["Opción","Lunes",null,"Martes",null,"Miércoles",null,"Jueves",null,"Viernes"]
[null,null,null,null,null,{"$f":"menu!O2","v":"1 DE MARZO"},null,{"$f":"menu!P2","v":"2 DE MARZO"},null,{"$f":"menu!Q2","v":"3 DE MARZO"}]
[]
["Entrada",null,null,null,null,{"$f":"menu!F3","v":0},null,{"$f":"menu!H3","v":0},null,{"$f":"menu!J3","v":"HUEVITO A LA HUANCAINA"}]
["A",null,null,null,null,{"$f":"menu!F4","v":0},null,{"$f":"menu!H4","v":0},null,{"$f":"menu!J4","v":"ARROZ CON POLLO "}]
["B",null,null,null,null,{"$f":"menu!F5","v":0},null,{"$f":"menu!H5","v":0},null,{"$f":"menu!J5","v":"SECO DE RES"}]
["C",null,null,null,null,{"$f":"menu!F6","v":0},null,{"$f":"menu!H6","v":0},null,{"$f":"menu!J6","v":"POLLO A LA PLANCHA CON YUCAS DORADAS"}]
["D",null,null,null,null,{"$f":"menu!F7","v":0},null,{"$f":"menu!H7","v":0},null,{"$f":"menu!J7","v":"ENSALADA FRESCA CON PAVITO AL HORNO"}]
["E",null,null,null,null,{"$f":"menu!F8","v":0},null,{"$f":"menu!H8","v":0},null,{"$f":"menu!J8","v":"MILANESA DE PESCADO CON ARROZ PRIMAVERA"}]
["V",null,null,null,null,{"$f":"menu!F9","v":0},null,{"$f":"menu!H9","v":0},null,{"$f":"menu!J9","v":"SECO VEGETARIANO CON ARROZ"}]
["postre",null,null,null,null,{"$f":"menu!F10","v":0},null,{"$f":"menu!H10","v":0},null,{"$f":"menu!J10","v":"GELATINA"}]
["refresco",null,null,null,null,{"$f":"menu!F11","v":0},null,{"$f":"menu!H11","v":0},null,{"$f":"menu!J11","v":"LIMONADA"}]
[]
["Opción",{"$f":"menu!R2","v":"6 DE MARZO"},null,{"$f":"menu!S2","v":"7 DE MARZO"},null,{"$f":"menu!T2","v":"8 DE MARZO"},null,{"$f":"menu!U2","v":"9 DE MARZO"},null,{"$f":"menu!V2","v":"10 DE MARZO"}]
[]
["Entrada",{"$f":"menu!B13","v":"ENSALADA FRESCA"},null,{"$f":"menu!D13","v":"ENSALADA DE PALTA"},null,{"$f":"menu!F13","v":"ENSALADA DE PEPINO"},null,{"$f":"menu!H13","v":"BOMBITAS A LA DIABLA"},null,{"$f":"menu!J13","v":"PAN AL AJO"}]
["A",{"$f":"menu!B14","v":"POLLO A LA OLLA CON ARROZ PRIMAVERA"},null,{"$f":"menu!D14","v":"POLLO AL SILLAO CON ARROZ PRIMAVERA"},null,{"$f":"menu!F14","v":"HAMBURGUESA DE RES CON ARROZ PRIMAVERA"},null,{"$f":"menu!H14","v":"CHOCLITO SALTADO CON  POLLO Y ARROZ "},null,{"$f":"menu!J14","v":"AJÍ DE GALLINA"}]
["B",{"$f":"menu!B15","v":"ESTOFADO DE RES CON ARROZ "},null,{"$f":"menu!D15","v":"ARROZ PRIMAVERA CON MATASCA DE RES"},null,{"$f":"menu!F15","v":"POLLO A LA COCA COLA CON ARROZ PRIMAVERA"},null,{"$f":"menu!H15","v":"CARAPULCRA GUISADA CON CERDO"},null,{"$f":"menu!J15","v":"SPAGHETTI  A LA BOLOGNESA"}]
["C",{"$f":"menu!B16","v":"POLLO A LA PLANCHA CON LENTEJAS GUISADAS"},null,{"$f":"menu!D16","v":"POLLO A LA PLANCHA CON PAPITAS"},null,{"$f":"menu!F16","v":"POLLO AL HORNO CON PAPAS SANCOCHADAS"},null,{"$f":"menu!H16","v":"POLLO A LA PLANCHA CON SPAGHETTI AL PESTO "},null,{"$f":"menu!J16","v":"POLLO A LA PLANCHA CON FRIJOLES GUISADOS "}]
["D",{"$f":"menu!B17","v":"ENSALADA CÉSAR CON POLLITO A LA PLANCHA Y CROTONES"},null,{"$f":"menu!D17","v":"ENSALADA CHEFF CON PAVITO "},null,{"$f":"menu!F17","v":"WRAP DE POLLO Y PALTA "},null,{"$f":"menu!H17","v":"ENSALADA CRIOLLA CON POLLO A LA PLANCHA"},null,{"$f":"menu!J17","v":"CAUSA LIMEÑA CON POLLO Y VERDURAS"}]
["E",{"$f":"menu!B18","v":"CHICKEN FINGERS CON PAPAS"},null,{"$f":"menu!D18","v":"NUGGETS ARTESANALES CON TEQUEÑOS  RELLENOS DE QUESO /GUACAMOLE"},null,{"$f":"menu!F18","v":"DEDITOS DE PESCADO CON PAPAS SANCOCHADAS"},null,{"$f":"menu!H18","v":"CHICKEN FINGERS CON CHOCLITO Y QUESO"},null,{"$f":"menu!J18","v":"DEDITOS DE PESCADO CON YUCA "}]
["V",{"$f":"menu!B19","v":"LENTEJAS GUISADAS CON HUEVITO A LA PLANCHA"},null,{"$f":"menu!D19","v":"CAUSA DE VERDURAS CON HUEVO"},null,{"$f":"menu!F19","v":"HAMBURGUESA VEGETARIANA CON ARROZ "},null,{"$f":"menu!H19","v":"SUPER PAPA A LA HUANCAINA CON HUEVO"},null,{"$f":"menu!J19","v":"FRIJOLES GUISADOS Y HUEVITO A LA PLANCHA "}]
["postre",{"$f":"menu!B20","v":"FRUTA DE ESTACIÓN"},null,{"$f":"menu!D20","v":"BOMBITAS HL "},null,{"$f":"menu!F20","v":"FLAN "},null,{"$f":"menu!H20","v":"FRUTA DE ESTACIÓN"},null,{"$f":"menu!J20","v":"GELATINA"}]
["refresco",{"$f":"menu!B21","v":"LIMONADA"},null,{"$f":"menu!D21","v":"CHICHA MORADA"},null,{"$f":"menu!F21","v":"MARACUYÁ"},null,{"$f":"menu!H21","v":"NARANJADA"},null,{"$f":"menu!J21","v":"AGUA MINERAL"}]
[]
["Opción",{"$f":"menu!W2","v":"13 DE MARZO"},null,{"$f":"menu!X2","v":"14 DE MARZO"},null,{"$f":"menu!Y2","v":"15 DE MARZO"},null,{"$f":"menu!Z2","v":"16 DE MARZO"},null,{"$f":"menu!AA2","v":"17 DE MARZO"}]
[]
["Entrada",{"$f":"menu!B23","v":"ENSALADA DE PALTA"},null,{"$f":"menu!D23","v":"ENSALADA DE VERDURAS"},null,{"$f":"menu!F23","v":"WANTAN CON TAMARINDO"},null,{"$f":"menu!H23","v":"MINI OCOPITA"},null,{"$f":"menu!J23","v":"MINICAUSITA A LA HUANCAINA"}]
["A",{"$f":"menu!B24","v":"POLLO A LA REINA CON ARROZ PRIMAVERA"},null,{"$f":"menu!D24","v":"TRIGO GUISADO CON QUESITO Y TROZOS DE POLLO "},null,{"$f":"menu!F24","v":"ARROZ CHAUFA DE RES "},null,{"$f":"menu!H24","v":"VAINITAS SALTEADAS CON RES"},null,{"$f":"menu!J24","v":"BISTECK CON PAPITAS"}]
["B",{"$f":"menu!B25","v":"LOMO SALTADO CON ARROZ"},null,{"$f":"menu!D25","v":"SPAGHETTI A LO ALFREDO CON HAMBURGUESA DE RES"},null,{"$f":"menu!F25","v":"MILANESA DE PESCADO CON ARROZ Y BRÓCOLI"},null,{"$f":"menu!H25","v":"CORDON BLEU DE POLLO CON ARROZ PRIMAVERA"},null,{"$f":"menu!J25","v":"ARROZ CON POLLO "}]
["C",{"$f":"menu!B26","v":"POLLO A LA PLANCHA CON PAPITAS"},null,{"$f":"menu!D26","v":"POLLO A LA PLANCHA CON ARROZ PRIMAVERA"},null,{"$f":"menu!F26","v":"POLLO A LA PLANCHA CON ARROZ Y BRÓCOLI"},null,{"$f":"menu!H26","v":"POLLO A LA PLANCHA CON MACARRONES CON QUESO"},null,{"$f":"menu!J26","v":"POLLO A LA PLANCHA CON PAPITAS"}]
["D",{"$f":"menu!B27","v":"ENSALADA WALDORF CON PAVO AL HORNO"},null,{"$f":"menu!D27","v":"ENSALADA DE GARBANZOS CON ATÚN "},null,{"$f":"menu!F27","v":"ENSALADA DE VERDURAS COCIDAS CON POLLO A LA PLANCHA"},null,{"$f":"menu!H27","v":"ENSALADA ORIENTAL CON POLLO "},null,{"$f":"menu!J27","v":"ENSALADA RUSA CON POLLO A LA PLANCHA "}]
["E",{"$f":"menu!B28","v":"PIERNITA CON PAPITAS"},null,{"$f":"menu!D28","v":"POLLITO AL SILLAO CON ARROZ PRIMAVERA"},null,{"$f":"menu!F28","v":"NUGGETS DE POLLO CON PAPITAS"},null,{"$f":"menu!H28","v":"FISH FINGERS CON ARROZ BLANCO"},null,{"$f":"menu!J28","v":"PIZZA ARTESANAL CLÁSICA / ENSALADA"}]
["V",{"$f":"menu!B29","v":"SALTADO VEGETARIANO CON ARROZ"},null,{"$f":"menu!D29","v":"TRIGO GUISADO CON QUESITO Y HUEVO A LA PLANCHA"},null,{"$f":"menu!F29","v":"VERDURAS CON SOYA / ARROZ"},null,{"$f":"menu!H29","v":"VAINITAS VEGETARIANAS CON ARROZ"},null,{"$f":"menu!J29","v":"ARROZ CRIOLLO VEGETARIANO"}]
["postre",{"$f":"menu!B30","v":"GELATINA"},null,{"$f":"menu!D30","v":"FRUTA DE ESTACIÓN"},null,{"$f":"menu!F30","v":"FRUTA DE ESTACIÓN"},null,{"$f":"menu!H30","v":"MINI TRUFA"},null,{"$f":"menu!J30","v":"ARROZ CON LECHE"}]
["refresco",{"$f":"menu!B31","v":"MARACUYÁ "},null,{"$f":"menu!D31","v":"LIMONADA"},null,{"$f":"menu!F31","v":"CHICHA MORADA"},null,{"$f":"menu!H31","v":"NARANJADA"},null,{"$f":"menu!J31","v":"LIMONADA"}]
[]
["Opción",{"$f":"menu!AB2","v":"20 DE MARZO"},null,{"$f":"menu!AC2","v":"21 DE MARZO"},null,{"$f":"menu!AD2","v":"22 DE MARZO"},null,{"$f":"menu!AE2","v":"23 DE MARZO"},null,{"$f":"menu!AF2","v":"24 DE MARZO"}]
[]
["Entrada",{"$f":"menu!B33","v":"SALPICÓN DE VERDURAS"},null,{"$f":"menu!D33","v":"HUEVITOS A LA HUANCAINA"},null,{"$f":"menu!F33","v":"PAN AL AJO"},null,{"$f":"menu!H33","v":"ENSALADA FRESCA"},null,{"$f":"menu!J33","v":"HUEVIITO A LA RUSA"}]
["A",{"$f":"menu!B34","v":"SECO DE RES "},null,{"$f":"menu!D34","v":"SPAGHETTI EN SALSA ROJA CON POLLO"},null,{"$f":"menu!F34","v":"POLLO AL VINO CON ARROZ PRIMAVERA"},null,{"$f":"menu!H34","v":"LOCRO DE ZAPALLO CON POLLITO"},null,{"$f":"menu!J34","v":"POLLO AL HORNO CON PURÉ DE PAPITA AMARILLA"}]
["B",{"$f":"menu!B35","v":"MILANESA DE POLLO CON ARROZ PRIMAVERA"},null,{"$f":"menu!D35","v":"MATASCA DE RES "},null,{"$f":"menu!F35","v":"LASAGNA A LA BOLOGNESA"},null,{"$f":"menu!H35","v":"SALTADO DE VERDURAS CON RES"},null,{"$f":"menu!J35","v":"CARAPULCRA GUISADA CON RES"}]
["C",{"$f":"menu!B36","v":"POLLO A LA PLANCHA CON LENTEJAS GUISADAS"},null,{"$f":"menu!D36","v":"POLLO A LA PLANCHA CON PAPA SANCOCHADA"},null,{"$f":"menu!F36","v":"POLLO A LA PLANCHA CON PAPITAS "},null,{"$f":"menu!H36","v":"POLLO A LA PLANCHA CON ARROZ BLANCO "},null,{"$f":"menu!J36","v":"POLLO A LA PLANCHA CON PURÉ DE PAPITA AMARILLA"}]
["D",{"$f":"menu!B37","v":"ENSALADA PARRILLERA CON POLLITO A LA PLANCHA "},null,{"$f":"menu!D37","v":"ENSALADA DE FIDEOS CON POLLITO "},null,{"$f":"menu!F37","v":"ENSALADAS DE ATÚN"},null,{"$f":"menu!H37","v":"ENSALADA DE QUINOA CON POLLITO"},null,{"$f":"menu!J37","v":"ENSALADA DE BRÓCOLI CON POLLITO A LA PLANCHA "}]
["E",{"$f":"menu!B38","v":"POLLO A LA COCA COLA CON ARROZ PRIMAVERA"},null,{"$f":"menu!D38","v":"PIERNITA DE POLLO CON PAPITAS"},null,{"$f":"menu!F38","v":"HAMBURGUESA AL PLATO CON PAPITAS"},null,{"$f":"menu!H38","v":"CHICKEN FINGERS CON PAPAS DORADAS"},null,{"$f":"menu!J38","v":"TORTILLA DE ATÚN CON ARROZ PRIMAVERA"}]
["V",{"$f":"menu!B39","v":"SECO VEGETARIANO CON ARROZ"},null,{"$f":"menu!D39","v":"SPAGHETTI EN SALSA ROJA CON SOYA"},null,{"$f":"menu!F39","v":"CAUSA DE VERDURAS"},null,{"$f":"menu!H39","v":"TORTILLAS DE COLIFLOR CON ARROZ "},null,{"$f":"menu!J39","v":"CARAPULCRA VEGETARIANA CON ARROZ"}]
["postre",{"$f":"menu!B40","v":"GELATINA"},null,{"$f":"menu!D40","v":"FRUTA DE ESTACIÓN"},null,{"$f":"menu!F40","v":"FLAN "},null,{"$f":"menu!H40","v":"BOMBITAS HL"},null,{"$f":"menu!J40","v":"FRUTA DE ESTACIÓN"}]
["refresco",{"$f":"menu!B41","v":"AGUA MINERAL"},null,{"$f":"menu!D41","v":"CHICHA MORADA"},null,{"$f":"menu!F41","v":"LIMONADA"},null,{"$f":"menu!H41","v":"MARACUYÁ"},null,{"$f":"menu!J41","v":"NARANJADA"}]
[]
["Opción",{"$f":"menu!AG2","v":"27 DE MARZO"},null,{"$f":"menu!AH2","v":"28 DE MARZO"},null,{"$f":"menu!AI2","v":"29 DE MARZO"},null,{"$f":"menu!AJ2","v":"30 DE MARZO"},null,{"$f":"menu!AK2","v":"31 DE MARZO"}]
[]
["Entrada",{"$f":"menu!B43","v":"ENSALADA DE PALTA"},null,{"$f":"menu!D43","v":"ENSALADA FRESCA"},null,{"$f":"menu!F43","v":"ENSALADA DE PEPINO"},null,{"$f":"menu!H43","v":"BOMBITAS A LA DIABLA"},null,{"$f":"menu!J43","v":"ENSALADA DE TOMATE"}]
["A",{"$f":"menu!B44","v":"PAPA RELLENA CON RES Y ARROZ PRIMAVERA"},null,{"$f":"menu!D44","v":"CORDON BLEU DE POLLO CON ARROZ PRIMAVERA"},null,{"$f":"menu!F44","v":"MILANESA DE POLLO CON ARROZ Y BRÓCOLI"},null,{"$f":"menu!H44","v":"POLLO AL HORNO CON PURÉ DE PAPITA AMARILLA"},null,{"$f":"menu!J44","v":"SALTADO DE VERDURAS CON POLLO "}]
["B",{"$f":"menu!B45","v":"POLLO AL HORNO CON PAPAS DORADAS"},null,{"$f":"menu!D45","v":"PALLARES GUISADOS CON POLLO"},null,{"$f":"menu!F45","v":"FRIJOLES ROJOS BATIDOS GUISADOS CON RES Y ARROZ PRIMAVERA"},null,{"$f":"menu!H45","v":"SECO DE RES CON ARROZ"},null,{"$f":"menu!J45","v":"GUISO DE CARNE "}]
["C",{"$f":"menu!B46","v":"POLLO  A LA PLANCHA CON PAPITAS"},null,{"$f":"menu!D46","v":"POLLO A LA PLANCHA CON ARROZ PRIMAVERA"},null,{"$f":"menu!F46","v":"POLLO A LA PLANCHA CON FRIJOLES ROJOS BATIDOS"},null,{"$f":"menu!H46","v":"POLLO A LA PLANCHA CON CAMOTES DORADOS"},null,{"$f":"menu!J46","v":"POLLO A LA PLANCHA CON ARROZ PRIMAVERA"}]
["D",{"$f":"menu!B47","v":"ENSALADA RUSA CON POLLITO A LA PLANCHA"},null,{"$f":"menu!D47","v":"PALTA RELLENA CON POLLITO"},null,{"$f":"menu!F47","v":"ENSALADA DE LENTEJAS CON POLLO EN TROZOS"},null,{"$f":"menu!H47","v":"ENSALADA FRESCA CON PESCADO AL VAPOR"},null,{"$f":"menu!J47","v":"ENSALADA CÉSAR CON POLLO A LA PLANCHA"}]
["E",{"$f":"menu!B48","v":"POLLITO ANTICUCHADO CON PAPITAS"},null,{"$f":"menu!D48","v":"NUGGETS DE POLLO ARTESANALES CON ARROZ PRIMAVERA"},null,{"$f":"menu!F48","v":"PIERNITA TERIYAKI CON ARROZ PRIMAVERA"},null,{"$f":"menu!H48","v":"POLLITO AL HORNO CON CAMOTES DORADOS"},null,{"$f":"menu!J48","v":"FISH FINGERS CON YUQUITAS Y SALSA TÁRTARA"}]
["V",{"$f":"menu!B49","v":"GUISITO VEGETARIANO CON ARROZ"},null,{"$f":"menu!D49","v":"PIZZA CLÁSICA ARTESANAL CON ENSALADA"},null,{"$f":"menu!F49","v":"SALTADO VEGETARIANO CON ARROZ"},null,{"$f":"menu!H49","v":"SECO VEGETARIANO CON ARROZ"},null,{"$f":"menu!J49","v":"SALTADO VEGETARIANO CON SOYA Y ARROZ"}]
["postre",{"$f":"menu!B50","v":"GALLETAS NATURALES"},null,{"$f":"menu!D50","v":"FRUTA DE ESTACIÓN"},null,{"$f":"menu!F50","v":"GELATINA"},null,{"$f":"menu!H50","v":"FRUTA DE ESTACIÓN"},null,{"$f":"menu!J50","v":"MINI ALFAJOR"}]
["refresco",{"$f":"menu!B51","v":"NARANJADA"},null,{"$f":"menu!D51","v":"CHICHA MORADA"},null,{"$f":"menu!F51","v":"LIMONADA"},null,{"$f":"menu!H51","v":"MARACUYÁ"},null,{"$f":"menu!J51","v":"NARANJADA"}]
[]
[null,null,null,null,null,null,null,"Limpiar  Pedidos"]

{"sheet":"ABRIL","index":1,"n_rows":76,"n_cols":10,"rows_kept":76,"cut":false,"hidden":false,"merged":[[17,1,17,2],[24,2,25,2],[17,3,17,4],[24,4,25,4],[17,5,17,6],[24,6,25,6],[41,9,41,10],[27,9,27,10],[39,1,39,2],[39,3,39,4],[39,5,39,6],[39,7,39,8],[39,9,39,10],[27,1,27,2],[27,3,27,4],[27,7,27,8],[41,5,41,6],[41,7,41,8],[41,1,41,2],[41,3,41,4],[27,5,27,6],[29,1,29,2],[63,0,73,10],[106,0,106,10],[109,0,109,10],[77,0,77,1],[105,0,105,10],[78,0,81,29],[51,7,51,8],[51,9,51,10],[60,2,61,2],[60,4,61,4],[60,8,61,8],[60,10,61,10],[53,1,53,2],[53,3,53,4],[53,7,53,8],[53,9,53,10],[51,1,51,2],[51,3,51,4],[51,5,51,6],[53,5,53,6],[60,6,61,6],[9,3,9,6],[9,8,9,9],[11,0,11,10],[15,1,15,2],[15,3,15,4],[15,5,15,6],[15,7,15,8],[15,9,15,10],[9,1,9,2],[13,0,13,10],[0,3,1,7],[2,0,2,10],[3,0,3,10],[4,0,4,2],[5,1,5,2],[5,3,5,8],[6,1,6,2],[6,3,6,4],[6,6,6,8],[7,0,7,2],[8,0,8,2],[8,3,8,6],[8,8,8,9],[48,2,49,2],[48,4,49,4],[48,6,49,6],[48,8,49,8],[48,10,49,10],[29,9,29,10],[36,6,37,6],[36,8,37,8],[36,10,37,10],[36,2,37,2],[29,3,29,4],[36,4,37,4],[29,5,29,6],[29,7,29,8]]}
[null,null,null,"HAPPY LUNCHES SERVICE SAC\nCOLEGIO SANTA MARIA\nPRIMARIA\nTel. 6053573-6053577 \nHorario de atención: Lun -Vie 8:00 am 4:00 pm\n          Mobile: 922-126-906 Email: lunch-sm@happylunchesservice.com\n\n\n"]
[]
["BCP CUENTA CORRIENTE:       002 - 194 2046194-0-25   \nBBVA CUENTA CORRIENTE:     011 - 149-0100033241-29"]
["FAVOR ENVIAR VOUCHER O TRANSFERENCIA ELECTRÓNICA A NUESTRO E-MAIL UNA VEZ REALIZADO EL ABONO EN NUESTRA CUENTA. GRACIAS POR SU COLABORACIÓN."]
[" DATOS DEL PADRE O APODERADO :"]
[{"$f":"CONCATENATE([1]MARZO!D9,\"  \")","v":"  "},"NOMBRES Y APELLIDOS:"]
[null,"TELÉFONO:","TELEFONO:",null,null,"CORREO ELECTRÓNICO:"]
["DATOS DEL ALUMNO                           :"]
["NOMBRES :",null,null,null,null,null,null,"GRADO Y SECCIÓN :"]
[null,"APELLIDOS :",null,null,null,null,null,"ALERGIAS :"]
[]
["IMPORTANTE: ES NECESARIO QUE LOS DATOS SOLICITADOS SEAN LLENADOS DE FORMA CORRECTA TANTO DEL TUTOR COMO DEL ALUMNO(A) . ELEGIR UNICAMENTE  LA OPCIÓN  EN LA FECHA  QUE DESEA EL SERVICIO,DE NO NECESITAR EL SERVICIO UN DÍA NO SELECCIONAR NINGUNA OPCIÓN ESE DÍA . YA QUE EL PROGRAMA CALCULARÁ LA CANTIDAD DE ALMUERZOS ELEGIDOS POR ALUMNO ASÍ COMO EL TOTAL A DEPOSITAR.\nEN CADA HOJA ELECTRÓNICA DEBE DE HABER SOLO UN ALUMNO.\nNO RE-ENVIAR SIN HABER GUARDADO EL DOCUMENTO DESPUÉS DE HECHA LA SELECCIÓN.\nCUALQUIER CANCELACION O SUSPENSION DE ALGUN ALMUERZO SE DEBE HACER HASTA 8.30 AM DEL MISMO DIA"]
[]
["IMPORTANTE: A PARTIR DEL 01 ABRIL 2017 - LAS CANCELACION DE PEDIDOS POR AUSENCIA SOLO SE PODRA HACER CON 24 HORAS  (UN DIA ANTES) DE ANTICIPACION DESPUES DE ESTE PERIODO NUESTRO SISTEMA NO PERMITE SIN EXCEPCION ALGUNA.\n\nES NECESARIO QUE LOS DATOS SOLICITADOS SEAN LLENADOS DE FORMA CORRECTA TANTO DEL TUTOR COMO DEL ALUMNO(A) . ELEGIR UNICAMENTE  LA OPCIÓN  EN LA FECHA  QUE DESEA EL SERVICIO,DE NO NECESITAR EL SERVICIO UN DÍA NO SELECCIONAR NINGUNA OPCIÓN ESE DÍA . YA QUE EL PROGRAMA CALCULARÁ LA CANTIDAD DE ALMUERZOS ELEGIDOS POR ALUMNO ASÍ COMO EL TOTAL A DEPOSITAR.\nEN CADA HOJA ELECTRÓNICA DEBE DE HABER SOLO UN ALUMNO.\nNO RE-ENVIAR SIN HABER GUARDADO EL DOCUMENTO DESPUÉS DE HECHA LA SELECCIÓN.\n!!! ATENCION USTED DEBE PRESIONAR FRENTE AL MENU EL CIRCULO A LA DERECHA HASTA QUE CAMBIE DE COLOR EL MENU¡¡¡"]
["Opción","Lunes",null,"Martes",null,"Miércoles",null,"Jueves",null,"Viernes"]
[null,{"$f":"menu!M4","v":"3 DE ABRIL"},null,{"$f":"menu!N4","v":"4 DE ABRIL"},null,{"$f":"menu!O4","v":"5 DE ABRIL"},null,{"$f":"menu!P4","v":"6 DE ABRIL"},null,{"$f":"menu!Q4","v":"7 DE ABRIL"}]
[]
["Entrada",{"$f":"menu!B53","v":"PAN AL AJO"},null,{"$f":"menu!D53","v":"WANTAN CON TAMARINDO"},null,{"$f":"menu!F53","v":"ENSALADA DE TOMATES"},null,{"$f":"menu!H3","v":0},null,{"$f":"menu!J3","v":"HUEVITO A LA HUANCAINA"}]
["A",{"$f":"menu!B54","v":"POLLO SALTADO CON ARROZ"},null,{"$f":"menu!D54","v":"ARROZ CHAUFA DE POLLO "},null,{"$f":"menu!F54","v":"MILANESA DE POLLO CON ARROZ Y BRÓCOLI"},null,{"$f":"menu!H54","v":"CAIGUA RELLENA CON RES / ARROZ"},null,{"$f":"menu!J54","v":"CARAPULCRA GUISADA CON RES"}]
["B",{"$f":"menu!B55","v":"SPAGHETTI EN SALSA BOLOGNESA"},null,{"$f":"menu!D55","v":"GUISO DE RES CON ARROZ CON VERDURAS"},null,{"$f":"menu!F55","v":"SPAGHETTI AL PESTO CON HAMBURGUESA DE RES"},null,{"$f":"menu!H55","v":"COLIFLOR ARREBOZADA CON ARROZ BLANCO "},null,{"$f":"menu!J55","v":"CHOCLITO SALTADO CON POLLO "}]
["C",{"$f":"menu!B56","v":"POLLO A LA PLANCHA CON PAPAS DORADAS"},null,{"$f":"menu!D56","v":"POLLO A LA PLANCHA CON ARROZ PRIMAVERA"},null,{"$f":"menu!F56","v":"POLLO A LA PLANCHA CON YUQUITAS DORADAS"},null,{"$f":"menu!H56","v":"POLLO A LA PLANCHA CON ARROZ BLANCO "},null,{"$f":"menu!J56","v":"POLLO A LA PLANCHA CON PURÉ DE PAPITA AMARILLA"}]
["D",{"$f":"menu!B57","v":"ENSALADA PARRILLERA CON POLLITO A LA PLANCHA "},null,{"$f":"menu!D57","v":"ENSALADA DE ATÚN "},null,{"$f":"menu!F57","v":"ENSALADA COCIDA CON PAVO ASADO"},null,{"$f":"menu!H57","v":"ENSALADA ORIENTAL CON POLLO "},null,{"$f":"menu!J57","v":"ENSALADA DE PALLARES CON POLLO A LA PLANCHA"}]
["E",{"$f":"menu!B58","v":"POLLO AL SILLAO CON ARROZ PRIMAVERA"},null,{"$f":"menu!D58","v":"NUGGETS DE POLLO ARTESANALES CON ARVEJAS VERDES "},null,{"$f":"menu!F58","v":"CHICKEN FINGERS CON YUQUITAS DORADAS"},null,{"$f":"menu!H58","v":"MILANESA DE PESCADO CON PAPAS DORADAS"},null,{"$f":"menu!J58","v":"POLLO CON PIÑA Y ARROZ CHAUFA"}]
["V",{"$f":"menu!B59","v":"SUPER PAPA A LA HUANCAÍNA CON HUEVO DURO"},null,{"$f":"menu!D59","v":"ARROZ CHAUFA VEGETARIANO"},null,{"$f":"menu!F59","v":"SPAGHETTI AL PESTO CON GUISO VEGETARIANO"},null,{"$f":"menu!H59","v":"CAUSA DE POLLO Y VERDURAS"},null,{"$f":"menu!J59","v":"ARROZ CHAUFA VEGETARIANO"}]
["postre",{"$f":"menu!B60","v":"FRUTA DE ESTACIÓN"},null,{"$f":"menu!D60","v":"BOMBITAS HL "},null,{"$f":"menu!F60","v":"GELATINA"},null,{"$f":"menu!H60","v":"FRUTA DE ESTACIÓN"},null,{"$f":"menu!J60","v":"MINI TRUFA"}]
["refresco",{"$f":"menu!B61","v":"LIMONADA"},null,{"$f":"menu!D61","v":"NARANJADA"},null,{"$f":"menu!F61","v":"AGUA MINERAL"},null,{"$f":"menu!H61","v":"LIMONADA"},null,{"$f":"menu!J61","v":"MARACUYÁ"}]
[]
["Opción",{"$f":"menu!R4","v":"10 DE ABRIL"},null,{"$f":"menu!S4","v":"11 DE ABRIL"},null,{"$f":"menu!T4","v":"12 DE ABRIL"},null,{"$f":"menu!U4","v":"13 DE ABRIL"},null,{"$f":"menu!V4","v":"14 DE ABRIL"}]
[]
["Entrada",{"$f":"menu!B13","v":"ENSALADA FRESCA"},null,{"$f":"menu!D63","v":"MINI CAUSA DE VERDURAS"},null,{"$f":"menu!F13","v":"ENSALADA DE PEPINO"},null,{"$f":"menu!H13","v":"BOMBITAS A LA DIABLA"},null,{"$f":"menu!J13","v":"PAN AL AJO"}]
["A",{"$f":"menu!B64","v":"ARROZ TAPADO CON PLATANITO A LA PLANCHA"},null,{"$f":"menu!D64","v":"POLLO A LA MOSTAZA CON ARROZ"},null,{"$f":"menu!F64","v":"PAELLA CON POLLO  Y RES"},null,{"$f":"menu!H64","v":0},null,{"$f":"menu!J64","v":0}]
["B",{"$f":"menu!B65","v":"POLLITO STROGONOFF CON ARROZ CON VERDURAS"},null,{"$f":"menu!D65","v":"PESCADO A LA PLANCHA CON ARROZ CON BRÓCOLI"},null,{"$f":"menu!F65","v":"VAINITAS SALTADAS CON RES"},null,{"$f":"menu!H65","v":0},null,{"$f":"menu!J65","v":0}]
["C",{"$f":"menu!B66","v":"POLLO A LA PLANCHA CON ENSALADA RUSA"},null,{"$f":"menu!D66","v":"POLLO A LA PLANCHA CON ARROZ PRIMAVERA"},null,{"$f":"menu!F66","v":"POLLO A LA PLANCHA CON PAPITAS  "},null,{"$f":"menu!H66","v":0},null,{"$f":"menu!J66","v":0}]
["D",{"$f":"menu!B67","v":"ENSALADA MEXICANA CON POLLO "},null,{"$f":"menu!D67","v":"ENSALADA WALDORF CON PAVO "},null,{"$f":"menu!F67","v":"PALTA RELLENA CON POLLITO MECHADO"},null,{"$f":"menu!H67","v":0},null,{"$f":"menu!J67","v":0}]
["E",{"$f":"menu!B68","v":"MACARRONES CON QUESO Y POLLITO PICADO"},null,{"$f":"menu!D68","v":"POLLO TIPO BRASA CON PAPITAS"},null,{"$f":"menu!F68","v":"CHEESEBURGUER CON PAPITAS Y ENSALADA"},null,{"$f":"menu!H68","v":0}," ",{"$f":"menu!J68","v":0}]
["V",{"$f":"menu!B69","v":"SUPER OCOPA CON HUEVO DURO"},null,{"$f":"menu!D69","v":"QUICHE DE ALCACHOFAS /  HUEVO DURO"},null,{"$f":"menu!F69","v":"VAINITAS SALTADAS CON SOYA/ ARROZ BLANCO "},null,{"$f":"menu!H69","v":0},null,{"$f":"menu!J69","v":0}]
["postre",{"$f":"menu!B70","v":"FRUTA DE ESTACIÓN"},null,{"$f":"menu!D70","v":"GELATINA "},null,{"$f":"menu!F70","v":"MINI ALFAJOR"},null,{"$f":"menu!H70","v":0},null,{"$f":"menu!J70","v":0}]
["refresco",{"$f":"menu!B71","v":"AGUA MINERAL"},null,{"$f":"menu!D71","v":"LIMONADA"},null,{"$f":"menu!F71","v":"CHICHA MORADA"},null,{"$f":"menu!H71","v":0},null,{"$f":"menu!J71","v":0}]
[]
["Opción",{"$f":"menu!W4","v":"17 DE ABRIL"},null,{"$f":"menu!X4","v":"18 DE ABRIL"},null,{"$f":"menu!Y4","v":"19 DE ABRIL"},null,{"$f":"menu!Z4","v":"20 DE ABRIL"},null,{"$f":"menu!AA4","v":"21 DE ABRIL"}]
[]
["Entrada",{"$f":"menu!B73","v":"MINI CÉSAR"},null,{"$f":"menu!D73","v":"MINI ORIENTAL "},null,{"$f":"menu!F73","v":"PAPA A LA HUANCAINA"},null,{"$f":"menu!H73","v":"ENSALADA MIXTA"},null,{"$f":"menu!J73","v":"ENSALADA DE VERDURAS"}]
["A",{"$f":"menu!B74","v":"POLLITO ANTICUCHADO CON ARROZ PRIMAVERA"},null,{"$f":"menu!D74","v":"GARBANZOS GUISADOS CON POLLO "},null,{"$f":"menu!F74","v":"ARROZ CON POLLO "},null,{"$f":"menu!H74","v":"TALLARÍN SALTADO ORIENTAL CON RES"},null,{"$f":"menu!J74","v":"POLLO A LA REINA CON ARROZ PRIMAVERA"}]
["B",{"$f":"menu!B75","v":"SECO DE RES CON FRIJOLES"},null,{"$f":"menu!D75","v":"ARROZ TAPADO CON RES Y PLATANITO A LA PLANCHA "},null,{"$f":"menu!F75","v":"ALBÓNDIGAS A LA NAPOLITANA CON ARROZ "},null,{"$f":"menu!H75","v":"AJÍ DE GALLINA "},null,{"$f":"menu!J75","v":"COLIFLOR ARREBOZADA CON RES"}]
["C",{"$f":"menu!B76","v":"POLLO A LA PLANCHA CON PURÉ ROSADO"},null,{"$f":"menu!D76","v":"POLLO A LA PLANCHA CON ARROZ PRIMAVERA"},null,{"$f":"menu!F76","v":"POLLO A LA PLANCHA CON ENSALADA CALIENTE"},null,{"$f":"menu!H76","v":"POLLO A LA PLANCHA CON PURÉ DE ESPINACAS"},null,{"$f":"menu!J76","v":"POLLO A LA PLANCHA CON ARROZ CON BRÓCOLI "}]
["D",{"$f":"menu!B77","v":"ENSALADA CÉSAR CON POLLITO A LA PLANCHA Y CROTONES"},null,{"$f":"menu!D77","v":"ENSALADA  PARRILLERA CON PAVITO "},null,{"$f":"menu!F77","v":"ENSALADA DE QUINOA CON POLLO "},null,{"$f":"menu!H77","v":"ENSALADA DE ATÚN "},null,{"$f":"menu!J77","v":"ENSALADA MEDITERRANEA CON POLLO "}]
["E",{"$f":"menu!B78","v":"POLLO AL HORNO CON PURÉ DE PAPA AMARILLA"},null,{"$f":"menu!D78","v":"PIERNITA DE POLLO CON ARROZ PRIMAVERA"},null,{"$f":"menu!F78","v":"BBQ WINGS CON PAPITAS"},null,{"$f":"menu!H78","v":"POLLO A LA COCA COLA CON ARROZ PRIMAVERA"},null,{"$f":"menu!J78","v":"HAMBURGUESA DE RES AL PLATO CON PAPITAS"}]
["V",{"$f":"menu!B79","v":"SECO VEGETARIANO CON FRIJOLES"},null,{"$f":"menu!D79","v":"GARBANZOS GUISADOS CON SOYA"},null,{"$f":"menu!F79","v":"ARROZ CRIOLLO CON SOYA"},null,{"$f":"menu!H79","v":"TALLARÍN SALTADO ORIENTAL CON SOYA"},null,{"$f":"menu!J79","v":"COLIFLOR ARREBOZADA CON SOYA"}]
["postre",{"$f":"menu!B80","v":"GELATINA"},null,{"$f":"menu!D80","v":"FRUTA DE ESTACIÓN"},null,{"$f":"menu!F80","v":"FLAN "},null,{"$f":"menu!H80","v":"FRUTA DE ESTACIÓN"},null,{"$f":"menu!J80","v":"MINI MUFFIN DE FRUTAS"}]
["refresco",{"$f":"menu!B81","v":"LIMONADA"},null,{"$f":"menu!D81","v":"NARANJADA"},null,{"$f":"menu!F81","v":"CHICHA MORADA"},null,{"$f":"menu!H81","v":"LIMONADA"},null,{"$f":"menu!J81","v":"MARACUYÁ"}]
[]
["Opción",{"$f":"menu!AB4","v":"24 DE ABRIL"},null,{"$f":"menu!AC4","v":"25 DE ABRIL"},null,{"$f":"menu!AD4","v":"26 DE ABRIL"},null,{"$f":"menu!AE4","v":"27 DE ABRIL"},null,{"$f":"menu!AF4","v":"28 DE ABRIL"}]
[]
["Entrada",{"$f":"menu!B83","v":"CREMA DE ZAPALLO "},null,{"$f":"menu!D83","v":"ENSALADA FRESCA"},null,{"$f":"menu!F83","v":"MINI ENSALADA DELICIA"},null,{"$f":"menu!H83","v":"BOMBITAS A LA DIABLA"},null,{"$f":"menu!J83","v":"TEQUEÑOS CON GUACAMOLE"}]
["A",{"$f":"menu!B84","v":"CAU CAU DE POLLO CON ARROZ "},null,{"$f":"menu!D84","v":"POLLITO PARRILLERO CON PAPAS DORADAS"},null,{"$f":"menu!F84","v":"LOMO SALTADO DE RES"},null,{"$f":"menu!H84","v":"CORDON BLEU DE POLLO CON ARROZ"},null,{"$f":"menu!J84","v":"GUISO DE CARNE CON ARROZ A LA JARDINERA"}]
["B",{"$f":"menu!B85","v":"LOMITO STROGONOFF CON ARROZ PRIMAVERA"},null,{"$f":"menu!D85","v":"FRIJOLES CON GUISITO DE RES"},null,{"$f":"menu!F85","v":"POLLITO ANTICUCHADO CON CHOCLO"},null,{"$f":"menu!H85","v":"OLLUQUITOS GUISADOS CON RES"},null,{"$f":"menu!J85","v":"POLLO A LA CARBONARA CON ARROZ PRIMAVERA"}]
["C",{"$f":"menu!B86","v":"POLLO A LA PLANCHA CON PURÉ"},null,{"$f":"menu!D86","v":"POLLO A LA PLANCHA CON ARROZ PRIMAVERA"},null,{"$f":"menu!F86","v":"POLLO A LA PLANCHA CON PAPITAS"},null,{"$f":"menu!H86","v":"POLLO A LA PLANCHA CON CAMOTE DORADO "},null,{"$f":"menu!J86","v":"POLLO A LA PLANCHA CON PAPITAS"}]
["D",{"$f":"menu!B87","v":"ENSALADA DE FIDEOS CON POLLO A LA PLANCHA "},null,{"$f":"menu!D87","v":"ENSALADA FRESCA CON PESCADO AL VAPOR"},null,{"$f":"menu!F87","v":"ENSALADA RUSA CON PAVO "},null,{"$f":"menu!H87","v":"ENSALADA  DE PALTA CON POLLO "},null,{"$f":"menu!J87","v":"ENSALADA  PARRILLERA CON POLLO TIPO PARRILLERO"}]
["E",{"$f":"menu!B88","v":"ASADO CON PURÉ DE PAPITA AMARILLA"},null,{"$f":"menu!D88","v":"NUGGETS DE POLLO CON TEQUEÑOS CON QUESO Y GUACAMOLE"},null,{"$f":"menu!F88","v":"BISTECK CON PAPITAS"},null,{"$f":"menu!H88","v":"POLLITO AL ROMERO CON PAPITAS DUQUESAS"},null,{"$f":"menu!J88","v":"POLLO TIPO BROASTER CON PAPITAS"}]
["V",{"$f":"menu!B89","v":"CAU CAU VEGETARIANO "},null,{"$f":"menu!D89","v":"FRIJOLES CON GUISITO DE SOYA"},null,{"$f":"menu!F89","v":"SOYA SALTADA CON ARROZ"},null,{"$f":"menu!H89","v":"TORTILLAS DE COLIFLOR CON ARROZ "},null,{"$f":"menu!J89","v":"PIZZA ARTESANAL CLÁSICA / ENSALADA"}]
["postre",{"$f":"menu!B90","v":"FRUTA DE ESTACIÓN"},null,{"$f":"menu!D90","v":"GELATINA "},null,{"$f":"menu!F90","v":"FRUTA DE ESTACIÓN"},null,{"$f":"menu!H90","v":"MINI PIONONITO"},null,{"$f":"menu!J90","v":"QUEQUE DE ZANAHORIA"}]
["refresco",{"$f":"menu!B91","v":"LIMONADA"},null,{"$f":"menu!D91","v":"CHICHA MORADA"},null,{"$f":"menu!F91","v":"AGUA MINERAL"},null,{"$f":"menu!H91","v":"NARANJADA"},null,{"$f":"menu!J91","v":"MARACUYÁ"}]
[]
[]
[]
[]
[]
[]
[]
[]
[]
[]
[]
[]
[]
[null,null,null,null,null,null,null,"Limpiar  Pedidos"]

{"sheet":"Resumen","index":2,"n_rows":29,"n_cols":36,"rows_kept":29,"cut":false,"hidden":false,"merged":[[0,0,1,29],[17,1,17,29],[18,1,18,29],[8,0,10,27],[13,0,16,29],[12,0,12,29],[5,28,7,28],[5,0,7,0],[5,1,7,1],[6,22,6,26],[7,22,7,26],[2,2,2,3],[5,2,5,3],[29,11,30,29],[24,0,24,29],[25,0,25,29],[28,0,28,29],[26,11,27,29]]}
["No se aceptarán nuevos pedidos ni cambios de opción con menos de 02 días (48 horas) de anticipación, excepto dietas por enfermedad"]
[]
["NOMBRES Y APELLIDOS","SECCION Y GRADO",null,null,null,null,null,null,null,null,null,null,null,null,null,null,null,null,null,null,null,null,null,null,null,null,null,"Número de Almuerzos","COSTO DIARIO ","Total Soles"]
["2DO MES"]
["1ER MES"]
[{"$f":"CONCATENATE(MARZO!D9,\" \",MARZO!D10)","v":" "},{"$f":"MARZO!I9","v":0},{"$f":"IF(C5=1,\"A\",IF(C5=2,\"B\",IF(C5=3,\"C\",IF(C5=4,\"D\",IF(C5=5,\"E\",IF(C5=6,\"V\",\"\"))))))","v":""},null,{"$f":"IF(E5=1,\"A\",IF(E5=2,\"B\",IF(E5=3,\"C\",IF(E5=4,\"D\",IF(E5=5,\"E\",IF(E5=6,\"V\",\"\"))))))","v":""},{"$f":"IF(F5=1,\"A\",IF(F5=2,\"B\",IF(F5=3,\"C\",IF(F5=4,\"D\",IF(F5=5,\"E\",IF(F5=6,\"V\",\"\"))))))","v":""},"","","","","","","","","","","","","","","","","","","","","",{"$f":"COUNTA(C5:AA5)","v":0},10.4,{"$f":"AB6*AC6","v":0},{"$f":"COUNTIF(C6:Z6,\"a\")","v":0},{"$f":"COUNTIF(C6:Z6,\"z\")","v":0},{"$f":"COUNTIF(C6:Z6,\"b\")","v":0},{"$f":"COUNTIF(C6:Z6,\"c\")","v":0},{"$f":"COUNTIF(C6:Z6,\"d\")","v":0},{"$f":"COUNTIF(C6:Z6,\"e\")","v":0}]
[null,null,"3 DE ABRIL","4 DE ABRIL","5 DE ABRIL","6 DE ABRIL","7 DE ABRIL","10 DE ABRIL","11 DE ABRIL","12 DE ABRIL","13 DE ABRIL","14 DE ABRIL","17 DE ABRIL","18 DE ABRIL","19 DE ABRIL","20 DE ABRIL","21 DE ABRIL","24 DE ABRIL","25 DE ABRIL","26 DE ABRIL","27 DE ABRIL","28 DE ABRIL"]
[null,null,{"$f":"IF(C4=1,\"A\",IF(C4=2,\"B\",IF(C4=3,\"C\",IF(C4=4,\"D\",IF(C4=5,\"E\",IF(C4=6,\"V\",\"\"))))))","v":""},"","","","","","","","","","","","","","","","","","","","",null,null,null,null,{"$f":"COUNTA(C4:AA4)","v":0},null,{"$f":"AB8*AC6","v":0}]
["RECUERDE QUE DESPUES DE ENVIAR SU PEDIDO (E-MAIL) TIENE 05 DIAS UTILES PARA ENVIARNOS SU VOUCHER O TRANSFERENCIA DE PAGO MEDIANTE E-MAIL.\nLA MORA SE COBRA SOLO  DESPUES DEL 5TO DIA DE SERVICIO  EN CASO USTED NO REALICE EL ABONO.",null,null,null,null,null,null,null,null,null,null,null,null,null,null,null,null,null,null,null,null,null,null,null,null,null,null,null,"TOTAL ",{"$f":"SUM(AD6:AD8)","v":0}]
[null,null,null,null,null,null,null,null,null,null,null,null,null,null,null,null,null,null,null,null,null,null,null,null,null,null,null,null,null,{"$f":"12","v":12}]
[null,null,null,null,null,null,null,null,null,null,null,null,null,null,null,null,null,null,null,null,null,null,null,null,null,null,null,null,"PAGO CON MORA "]
[]
["RESUMEN DE PEDIDO TOTAL:"]
["          CORREO ELECTRÓNICO:\nlunch-sm@happylunchesservice.com"]
[]
[]
[]
[]
[]
[]
[]
[]
[]
[]
["HORARIO DE ATENCIÓN AL CLIENTE: \nLUNES A VIERNES 8AM - 4PM"]
["    CEL: 922-126-906 \nTel: 6053573 - 6053577"]
[]
[]
["Disculpe la molestia estamos trabajando para ofrecer un mejor servicio:\n  www.happylunchesservice.com"]

{"sheet":"menu","index":3,"n_rows":91,"n_cols":37,"rows_kept":91,"cut":false,"hidden":true,"merged":[[91,0,91,1],[91,2,91,3],[91,4,91,5],[91,6,91,7],[91,8,91,9],[81,0,81,1],[81,2,81,3],[81,4,81,5],[81,6,81,7],[81,8,81,9],[71,0,71,1],[71,2,71,3],[71,4,71,5],[71,6,71,7],[71,8,71,9],[51,0,51,1],[51,2,51,3],[51,4,51,5],[51,6,51,7],[51,8,51,9],[61,0,61,1],[61,2,61,3],[61,4,61,5],[61,6,61,7],[61,8,61,9],[41,8,41,9],[41,0,41,1],[41,4,41,5],[41,6,41,7],[41,2,41,3],[31,4,31,5],[31,6,31,7],[0,0,0,9],[21,4,21,5],[21,6,21,7],[21,8,21,9],[31,2,31,3],[31,8,31,9],[31,0,31,1],[11,0,11,1],[21,0,21,1],[21,2,21,3]]}
[]
["OPCIONES",null,"OPCIONES",null,"OPCIONES","1 DE MARZO","OPCIONES","2 DE MARZO","OPCIONES","3 DE MARZO",null,"MARZO",null,null,"1 DE MARZO","2 DE MARZO","3 DE MARZO","6 DE MARZO","7 DE MARZO","8 DE MARZO","9 DE MARZO","10 DE MARZO","13 DE MARZO","14 DE MARZO","15 DE MARZO","16 DE MARZO","17 DE MARZO","20 DE MARZO","21 DE MARZO","22 DE MARZO","23 DE MARZO","24 DE MARZO","27 DE MARZO","28 DE MARZO","29 DE MARZO","30 DE MARZO","31 DE MARZO"]
["Entrada",null,"Entrada",null,"Entrada",null,"Entrada",null,"Entrada","HUEVITO A LA HUANCAINA"]
["A",null,"A",null,"A",null,"A",null,"A","ARROZ CON POLLO ",null,"ABRIL","3 DE ABRIL","4 DE ABRIL","5 DE ABRIL","6 DE ABRIL","7 DE ABRIL","10 DE ABRIL","11 DE ABRIL","12 DE ABRIL","13 DE ABRIL","14 DE ABRIL","17 DE ABRIL","18 DE ABRIL","19 DE ABRIL","20 DE ABRIL","21 DE ABRIL","24 DE ABRIL","25 DE ABRIL","26 DE ABRIL","27 DE ABRIL","28 DE ABRIL"]
["B",null,"B",null,"B",null,"B",null,"B","SECO DE RES"]
["C",null,"C",null,"C",null,"C",null,"C","POLLO A LA PLANCHA CON YUCAS DORADAS"]
["D",null,"D",null,"D",null,"D",null,"D","ENSALADA FRESCA CON PAVITO AL HORNO"]
["E",null,"E",null,"E",null,"E",null,"E","MILANESA DE PESCADO CON ARROZ PRIMAVERA"]
["V",null,"V",null,"V",null,"V",null,"V","SECO VEGETARIANO CON ARROZ"]
["postre",null,"postre",null,"postre",null,"postre",null,"postre","GELATINA"]
["refresco",null,"refresco",null,"refresco",null,"refresco",null,"refresco","LIMONADA"]
["6 DE MARZO",null,null,"7 D EMARZO",null,"8 DE MARZO",null,"9 DE MARZO",null,"10 DE MARZO"]
["Entrada","ENSALADA FRESCA","Entrada","ENSALADA DE PALTA","Entrada","ENSALADA DE PEPINO","Entrada","BOMBITAS A LA DIABLA","Entrada","PAN AL AJO"]
["A","POLLO A LA OLLA CON ARROZ PRIMAVERA","A","POLLO AL SILLAO CON ARROZ PRIMAVERA","A","HAMBURGUESA DE RES CON ARROZ PRIMAVERA","A","CHOCLITO SALTADO CON  POLLO Y ARROZ ","A","AJÍ DE GALLINA"]
["B","ESTOFADO DE RES CON ARROZ ","B","ARROZ PRIMAVERA CON MATASCA DE RES","B","POLLO A LA COCA COLA CON ARROZ PRIMAVERA","B","CARAPULCRA GUISADA CON CERDO","B","SPAGHETTI  A LA BOLOGNESA"]
["C","POLLO A LA PLANCHA CON LENTEJAS GUISADAS","C","POLLO A LA PLANCHA CON PAPITAS","C","POLLO AL HORNO CON PAPAS SANCOCHADAS","C","POLLO A LA PLANCHA CON SPAGHETTI AL PESTO ","C","POLLO A LA PLANCHA CON FRIJOLES GUISADOS "]
["D","ENSALADA CÉSAR CON POLLITO A LA PLANCHA Y CROTONES","D","ENSALADA CHEFF CON PAVITO ","D","WRAP DE POLLO Y PALTA ","D","ENSALADA CRIOLLA CON POLLO A LA PLANCHA","D","CAUSA LIMEÑA CON POLLO Y VERDURAS"]
["E","CHICKEN FINGERS CON PAPAS","E","NUGGETS ARTESANALES CON TEQUEÑOS  RELLENOS DE QUESO /GUACAMOLE","E","DEDITOS DE PESCADO CON PAPAS SANCOCHADAS","E","CHICKEN FINGERS CON CHOCLITO Y QUESO","E","DEDITOS DE PESCADO CON YUCA "]
["V","LENTEJAS GUISADAS CON HUEVITO A LA PLANCHA","V","CAUSA DE VERDURAS CON HUEVO","V","HAMBURGUESA VEGETARIANA CON ARROZ ","V","SUPER PAPA A LA HUANCAINA CON HUEVO","V","FRIJOLES GUISADOS Y HUEVITO A LA PLANCHA "]
["postre","FRUTA DE ESTACIÓN","postre","BOMBITAS HL ","postre","FLAN ","postre","FRUTA DE ESTACIÓN","postre","GELATINA"]
["refresco","LIMONADA","refresco","CHICHA MORADA","refresco","MARACUYÁ","refresco","NARANJADA","refresco","AGUA MINERAL"]
["13 DE MARZO",null,"14 DE MARZO","14 DE MARZO","15 DE MARZO",null,"16 DE MARZO",null,"17 DE MARZO"]
["Entrada","ENSALADA DE PALTA","Entrada","ENSALADA DE VERDURAS","Entrada","WANTAN CON TAMARINDO","Entrada","MINI OCOPITA","Entrada","MINICAUSITA A LA HUANCAINA"]
["A","POLLO A LA REINA CON ARROZ PRIMAVERA","A","TRIGO GUISADO CON QUESITO Y TROZOS DE POLLO ","A","ARROZ CHAUFA DE RES ","A","VAINITAS SALTEADAS CON RES","A","BISTECK CON PAPITAS"]
["B","LOMO SALTADO CON ARROZ","B","SPAGHETTI A LO ALFREDO CON HAMBURGUESA DE RES","B","MILANESA DE PESCADO CON ARROZ Y BRÓCOLI","B","CORDON BLEU DE POLLO CON ARROZ PRIMAVERA","B","ARROZ CON POLLO "]
["C","POLLO A LA PLANCHA CON PAPITAS","C","POLLO A LA PLANCHA CON ARROZ PRIMAVERA","C","POLLO A LA PLANCHA CON ARROZ Y BRÓCOLI","C","POLLO A LA PLANCHA CON MACARRONES CON QUESO","C","POLLO A LA PLANCHA CON PAPITAS"]
["D","ENSALADA WALDORF CON PAVO AL HORNO","D","ENSALADA DE GARBANZOS CON ATÚN ","D","ENSALADA DE VERDURAS COCIDAS CON POLLO A LA PLANCHA","D","ENSALADA ORIENTAL CON POLLO ","D","ENSALADA RUSA CON POLLO A LA PLANCHA "]
["E","PIERNITA CON PAPITAS","E","POLLITO AL SILLAO CON ARROZ PRIMAVERA","E","NUGGETS DE POLLO CON PAPITAS","E","FISH FINGERS CON ARROZ BLANCO","E","PIZZA ARTESANAL CLÁSICA / ENSALADA"]
["V","SALTADO VEGETARIANO CON ARROZ","V","TRIGO GUISADO CON QUESITO Y HUEVO A LA PLANCHA","V","VERDURAS CON SOYA / ARROZ","V","VAINITAS VEGETARIANAS CON ARROZ","V","ARROZ CRIOLLO VEGETARIANO"]
["postre","GELATINA","postre","FRUTA DE ESTACIÓN","postre","FRUTA DE ESTACIÓN","postre","MINI TRUFA","postre","ARROZ CON LECHE"]
["refresco","MARACUYÁ ","refresco","LIMONADA","refresco","CHICHA MORADA","refresco","NARANJADA","refresco","LIMONADA"]
["20 DE MARZO",null,"21 DE MARZO",null,"22 DE MARZO",null,"23 DE MARZO",null,"24 DE MARZO"]
["Entrada","SALPICÓN DE VERDURAS","Entrada","HUEVITOS A LA HUANCAINA","Entrada","PAN AL AJO","Entrada","ENSALADA FRESCA","Entrada","HUEVIITO A LA RUSA"]
["A","SECO DE RES ","A","SPAGHETTI EN SALSA ROJA CON POLLO","A","POLLO AL VINO CON ARROZ PRIMAVERA","A","LOCRO DE ZAPALLO CON POLLITO","A","POLLO AL HORNO CON PURÉ DE PAPITA AMARILLA"]
["B","MILANESA DE POLLO CON ARROZ PRIMAVERA","B","MATASCA DE RES ","B","LASAGNA A LA BOLOGNESA","B","SALTADO DE VERDURAS CON RES","B","CARAPULCRA GUISADA CON RES"]
["C","POLLO A LA PLANCHA CON LENTEJAS GUISADAS","C","POLLO A LA PLANCHA CON PAPA SANCOCHADA","C","POLLO A LA PLANCHA CON PAPITAS ","C","POLLO A LA PLANCHA CON ARROZ BLANCO ","C","POLLO A LA PLANCHA CON PURÉ DE PAPITA AMARILLA"]
["D","ENSALADA PARRILLERA CON POLLITO A LA PLANCHA ","D","ENSALADA DE FIDEOS CON POLLITO ","D","ENSALADAS DE ATÚN","D","ENSALADA DE QUINOA CON POLLITO","D","ENSALADA DE BRÓCOLI CON POLLITO A LA PLANCHA "]
["E","POLLO A LA COCA COLA CON ARROZ PRIMAVERA","E","PIERNITA DE POLLO CON PAPITAS","E","HAMBURGUESA AL PLATO CON PAPITAS","E","CHICKEN FINGERS CON PAPAS DORADAS","E","TORTILLA DE ATÚN CON ARROZ PRIMAVERA"]
["V","SECO VEGETARIANO CON ARROZ","V","SPAGHETTI EN SALSA ROJA CON SOYA","V","CAUSA DE VERDURAS","V","TORTILLAS DE COLIFLOR CON ARROZ ","V","CARAPULCRA VEGETARIANA CON ARROZ"]
["postre","GELATINA","postre","FRUTA DE ESTACIÓN","postre","FLAN ","postre","BOMBITAS HL","postre","FRUTA DE ESTACIÓN"]
["refresco","AGUA MINERAL","refresco","CHICHA MORADA","refresco","LIMONADA","refresco","MARACUYÁ","refresco","NARANJADA"]
["27 DE MARZO",null,"28 DE MARZO",null,"29 DE MARZO",null,"30 DE MARZO",null,"31 DE MARZO"]
["Entrada","ENSALADA DE PALTA","Entrada","ENSALADA FRESCA","Entrada","ENSALADA DE PEPINO","Entrada","BOMBITAS A LA DIABLA","Entrada","ENSALADA DE TOMATE"]
["A","PAPA RELLENA CON RES Y ARROZ PRIMAVERA","A","CORDON BLEU DE POLLO CON ARROZ PRIMAVERA","A","MILANESA DE POLLO CON ARROZ Y BRÓCOLI","A","POLLO AL HORNO CON PURÉ DE PAPITA AMARILLA","A","SALTADO DE VERDURAS CON POLLO "]
["B","POLLO AL HORNO CON PAPAS DORADAS","B","PALLARES GUISADOS CON POLLO","B","FRIJOLES ROJOS BATIDOS GUISADOS CON RES Y ARROZ PRIMAVERA","B","SECO DE RES CON ARROZ","B","GUISO DE CARNE "]
["C","POLLO  A LA PLANCHA CON PAPITAS","C","POLLO A LA PLANCHA CON ARROZ PRIMAVERA","C","POLLO A LA PLANCHA CON FRIJOLES ROJOS BATIDOS","C","POLLO A LA PLANCHA CON CAMOTES DORADOS","C","POLLO A LA PLANCHA CON ARROZ PRIMAVERA"]
["D","ENSALADA RUSA CON POLLITO A LA PLANCHA","D","PALTA RELLENA CON POLLITO","D","ENSALADA DE LENTEJAS CON POLLO EN TROZOS","D","ENSALADA FRESCA CON PESCADO AL VAPOR","D","ENSALADA CÉSAR CON POLLO A LA PLANCHA"]
["E","POLLITO ANTICUCHADO CON PAPITAS","E","NUGGETS DE POLLO ARTESANALES CON ARROZ PRIMAVERA","E","PIERNITA TERIYAKI CON ARROZ PRIMAVERA","E","POLLITO AL HORNO CON CAMOTES DORADOS","E","FISH FINGERS CON YUQUITAS Y SALSA TÁRTARA"]
["V","GUISITO VEGETARIANO CON ARROZ","V","PIZZA CLÁSICA ARTESANAL CON ENSALADA","V","SALTADO VEGETARIANO CON ARROZ","V","SECO VEGETARIANO CON ARROZ","V","SALTADO VEGETARIANO CON SOYA Y ARROZ"]
["postre","GALLETAS NATURALES","postre","FRUTA DE ESTACIÓN","postre","GELATINA","postre","FRUTA DE ESTACIÓN","postre","MINI ALFAJOR"]
["refresco","NARANJADA","refresco","CHICHA MORADA","refresco","LIMONADA","refresco","MARACUYÁ","refresco","NARANJADA"]
["3 DE ABRIL",null,"4 DE ABRIL",null,"5 DE ABRIL",null,"6 DE ABRIL",null,"7 DE ABRIL"]
["Entrada","PAN AL AJO","Entrada","WANTAN CON TAMARINDO","Entrada","ENSALADA DE TOMATES","Entrada","CHOCLITO CON QUESO","Entrada","ENSALADA DE VERDURAS"]
["A","POLLO SALTADO CON ARROZ","A","ARROZ CHAUFA DE POLLO ","A","MILANESA DE POLLO CON ARROZ Y BRÓCOLI","A","CAIGUA RELLENA CON RES / ARROZ","A","CARAPULCRA GUISADA CON RES"]
["B","SPAGHETTI EN SALSA BOLOGNESA","B","GUISO DE RES CON ARROZ CON VERDURAS","B","SPAGHETTI AL PESTO CON HAMBURGUESA DE RES","B","COLIFLOR ARREBOZADA CON ARROZ BLANCO ","B","CHOCLITO SALTADO CON POLLO "]
["C","POLLO A LA PLANCHA CON PAPAS DORADAS","C","POLLO A LA PLANCHA CON ARROZ PRIMAVERA","C","POLLO A LA PLANCHA CON YUQUITAS DORADAS","C","POLLO A LA PLANCHA CON ARROZ BLANCO ","C","POLLO A LA PLANCHA CON PURÉ DE PAPITA AMARILLA"]
["D","ENSALADA PARRILLERA CON POLLITO A LA PLANCHA ","D","ENSALADA DE ATÚN ","D","ENSALADA COCIDA CON PAVO ASADO","D","ENSALADA ORIENTAL CON POLLO ","D","ENSALADA DE PALLARES CON POLLO A LA PLANCHA"]
["E","POLLO AL SILLAO CON ARROZ PRIMAVERA","E","NUGGETS DE POLLO ARTESANALES CON ARVEJAS VERDES ","E","CHICKEN FINGERS CON YUQUITAS DORADAS","E","MILANESA DE PESCADO CON PAPAS DORADAS","E","POLLO CON PIÑA Y ARROZ CHAUFA"]
["V","SUPER PAPA A LA HUANCAÍNA CON HUEVO DURO","V","ARROZ CHAUFA VEGETARIANO","V","SPAGHETTI AL PESTO CON GUISO VEGETARIANO","V","CAUSA DE POLLO Y VERDURAS","V","ARROZ CHAUFA VEGETARIANO"]
["postre","FRUTA DE ESTACIÓN","postre","BOMBITAS HL ","postre","GELATINA","postre","FRUTA DE ESTACIÓN","postre","MINI TRUFA"]
["refresco","LIMONADA","refresco","NARANJADA","refresco","AGUA MINERAL","refresco","LIMONADA","refresco","MARACUYÁ"]
["10 DE ABRIL",null,"11 DE ABRIL",null,"12 DE ABRIL",null,"13 DE ABRIL",null,"14 DE ABRIL"]
["Entrada","SOLTERITO CON QUESO","Entrada","MINI CAUSA DE VERDURAS","Entrada","TORTILLA ESPAÑOLA ","Entrada",null,"Entrada"]
["A","ARROZ TAPADO CON PLATANITO A LA PLANCHA","A","POLLO A LA MOSTAZA CON ARROZ","A","PAELLA CON POLLO  Y RES","A",null,"A"]
["B","POLLITO STROGONOFF CON ARROZ CON VERDURAS","B","PESCADO A LA PLANCHA CON ARROZ CON BRÓCOLI","B","VAINITAS SALTADAS CON RES","B",null,"B"]
["C","POLLO A LA PLANCHA CON ENSALADA RUSA","C","POLLO A LA PLANCHA CON ARROZ PRIMAVERA","C","POLLO A LA PLANCHA CON PAPITAS  ","C",null,"C"]
["D","ENSALADA MEXICANA CON POLLO ","D","ENSALADA WALDORF CON PAVO ","D","PALTA RELLENA CON POLLITO MECHADO","D",null,"D"]
["E","MACARRONES CON QUESO Y POLLITO PICADO","E","POLLO TIPO BRASA CON PAPITAS","E","CHEESEBURGUER CON PAPITAS Y ENSALADA","E",null,"E"]
["V","SUPER OCOPA CON HUEVO DURO","V","QUICHE DE ALCACHOFAS /  HUEVO DURO","V","VAINITAS SALTADAS CON SOYA/ ARROZ BLANCO ","V",null,"V"]
["postre","FRUTA DE ESTACIÓN","postre","GELATINA ","postre","MINI ALFAJOR","postre",null,"postre"]
["refresco","AGUA MINERAL","refresco","LIMONADA","refresco","CHICHA MORADA","refresco",null,"refresco"]
["17 DE ABRIL",null,"18 DE ABRIL",null,"19 DE ABRIL",null,"20 DE ABRIL",null,"21 DE ABRIL"]
["Entrada","MINI CÉSAR","Entrada","MINI ORIENTAL ","Entrada","PAPA A LA HUANCAINA","Entrada","ENSALADA MIXTA","Entrada","ENSALADA DE VERDURAS"]
["A","POLLITO ANTICUCHADO CON ARROZ PRIMAVERA","A","GARBANZOS GUISADOS CON POLLO ","A","ARROZ CON POLLO ","A","TALLARÍN SALTADO ORIENTAL CON RES","A","POLLO A LA REINA CON ARROZ PRIMAVERA"]
["B","SECO DE RES CON FRIJOLES","B","ARROZ TAPADO CON RES Y PLATANITO A LA PLANCHA ","B","ALBÓNDIGAS A LA NAPOLITANA CON ARROZ ","B","AJÍ DE GALLINA ","B","COLIFLOR ARREBOZADA CON RES"]
["C","POLLO A LA PLANCHA CON PURÉ ROSADO","C","POLLO A LA PLANCHA CON ARROZ PRIMAVERA","C","POLLO A LA PLANCHA CON ENSALADA CALIENTE","C","POLLO A LA PLANCHA CON PURÉ DE ESPINACAS","C","POLLO A LA PLANCHA CON ARROZ CON BRÓCOLI "]
["D","ENSALADA CÉSAR CON POLLITO A LA PLANCHA Y CROTONES","D","ENSALADA  PARRILLERA CON PAVITO ","D","ENSALADA DE QUINOA CON POLLO ","D","ENSALADA DE ATÚN ","D","ENSALADA MEDITERRANEA CON POLLO "]
["E","POLLO AL HORNO CON PURÉ DE PAPA AMARILLA","E","PIERNITA DE POLLO CON ARROZ PRIMAVERA","E","BBQ WINGS CON PAPITAS","E","POLLO A LA COCA COLA CON ARROZ PRIMAVERA","E","HAMBURGUESA DE RES AL PLATO CON PAPITAS"]
["V","SECO VEGETARIANO CON FRIJOLES","V","GARBANZOS GUISADOS CON SOYA","V","ARROZ CRIOLLO CON SOYA","V","TALLARÍN SALTADO ORIENTAL CON SOYA","V","COLIFLOR ARREBOZADA CON SOYA"]
["postre","GELATINA","postre","FRUTA DE ESTACIÓN","postre","FLAN ","postre","FRUTA DE ESTACIÓN","postre","MINI MUFFIN DE FRUTAS"]
["refresco","LIMONADA","refresco","NARANJADA","refresco","CHICHA MORADA","refresco","LIMONADA","refresco","MARACUYÁ"]
["24 DE ABRIL",null,"25 DE ABRIL",null,"26 DE ABRIL",null,"27 DE ABRIL",null,"28 DE ABRIL"]
["Entrada","CREMA DE ZAPALLO ","Entrada","ENSALADA FRESCA","Entrada","MINI ENSALADA DELICIA","Entrada","BOMBITAS A LA DIABLA","Entrada","TEQUEÑOS CON GUACAMOLE"]
["A","CAU CAU DE POLLO CON ARROZ ","A","POLLITO PARRILLERO CON PAPAS DORADAS","A","LOMO SALTADO DE RES","A","CORDON BLEU DE POLLO CON ARROZ","A","GUISO DE CARNE CON ARROZ A LA JARDINERA"]
["B","LOMITO STROGONOFF CON ARROZ PRIMAVERA","B","FRIJOLES CON GUISITO DE RES","B","POLLITO ANTICUCHADO CON CHOCLO","B","OLLUQUITOS GUISADOS CON RES","B","POLLO A LA CARBONARA CON ARROZ PRIMAVERA"]
["C","POLLO A LA PLANCHA CON PURÉ","C","POLLO A LA PLANCHA CON ARROZ PRIMAVERA","C","POLLO A LA PLANCHA CON PAPITAS","C","POLLO A LA PLANCHA CON CAMOTE DORADO ","C","POLLO A LA PLANCHA CON PAPITAS"]
["D","ENSALADA DE FIDEOS CON POLLO A LA PLANCHA ","D","ENSALADA FRESCA CON PESCADO AL VAPOR","D","ENSALADA RUSA CON PAVO ","D","ENSALADA  DE PALTA CON POLLO ","D","ENSALADA  PARRILLERA CON POLLO TIPO PARRILLERO"]
["E","ASADO CON PURÉ DE PAPITA AMARILLA","E","NUGGETS DE POLLO CON TEQUEÑOS CON QUESO Y GUACAMOLE","E","BISTECK CON PAPITAS","E","POLLITO AL ROMERO CON PAPITAS DUQUESAS","E","POLLO TIPO BROASTER CON PAPITAS"]
["V","CAU CAU VEGETARIANO ","V","FRIJOLES CON GUISITO DE SOYA","V","SOYA SALTADA CON ARROZ","V","TORTILLAS DE COLIFLOR CON ARROZ ","V","PIZZA ARTESANAL CLÁSICA / ENSALADA"]
["postre","FRUTA DE ESTACIÓN","postre","GELATINA ","postre","FRUTA DE ESTACIÓN","postre","MINI PIONONITO","postre","QUEQUE DE ZANAHORIA"]
["refresco","LIMONADA","refresco","CHICHA MORADA","refresco","AGUA MINERAL","refresco","NARANJADA","refresco","MARACUYÁ"]